bitfinex/quotes_ETHUSD_20241024
["timestamp","ask_amount","ask_price","bid_price","bid_amount"]
[1729759601871,3.95088,2531.1,2530.7,0.7666]
[1729759602183,3.95104,2531.0,2530.8,0.13477874]
[1729759602550,0.790192,2531.0,2530.9,0.13471129]
[1729759602751,0.01,2530.9,2529.8,0.7666]
[1729759602984,3.95272,2529.9,2529.8,0.7666]
[1729759603190,3.95256,2530.0,2529.9,0.12617649]
[1729759603491,3.95272,2529.9,2529.8,0.7666]
[1729759603990,3.95266,2530.0,2529.8,0.7666]
[1729759604689,3.95272,2529.9,2529.8,0.7666]
[1729759604997,3.95251,2530.1,2529.5,0.7666]
[1729759604998,3.95252,2530.1,2529.5,0.7666]
[1729759605180,3.95281,2529.9,2529.5,0.7666]
[1729759605684,3.95343,2529.5,2529.2,0.7666]
[1729759606083,3.95358,2529.4,2529.2,0.7666]
[1729759606289,3.95398,2529.1,2528.8,0.7666]
[1729759606694,3.95373,2529.3,2528.8,0.7666]
[1729759606695,7.90747,2529.3,2528.8,0.7666]
[1729759606984,3.95373,2529.3,2528.8,4.721]
[1729759607193,7.90753,2529.3,2528.8,0.7666]
[1729759607377,3.95373,2529.3,2528.8,0.7666]
[1729759607753,3.954,2529.1,2528.6,0.1243829]
[1729759607954,3.95416,2529.0,2528.6,0.1243829]
[1729759608150,3.95433,2528.9,2528.6,0.1243829]
[1729759608399,3.95455,2528.8,2528.6,0.1243829]
[1729759608897,0.395433,2528.9,2528.6,0.1243829]
[1729759609194,4.70546,2528.8,2528.6,0.1243829]
[1729759609379,4.70546,2528.8,2528.7,0.12792518]
[1729759610792,8.36404486,2528.8,2528.7,0.12792518]
[1729759610959,3.9546,2528.7,2528.6,0.1243829]
[1729759611157,6.25779349,2528.7,2528.6,0.1243829]
[1729759611677,4.7056,2528.7,2528.6,0.1243829]
[1729759612058,4.7056,2528.7,2528.6,0.25210072]
[1729759612254,7.7056,2528.7,2528.6,0.1243829]
[1729759612903,7.7156,2528.7,2528.6,0.1243829]
[1729759613070,9.24946449,2528.7,2528.6,0.1243829]
[1729759614177,9.79946449,2528.7,2528.6,2.9e-06]
[1729759614892,9.24946449,2528.7,2528.6,2.9e-06]
[1729759615205,9.23946449,2528.7,2528.6,2.9e-06]
[1729759615413,12.90804935,2528.7,2528.6,2.9e-06]
[1729759615580,12.89804935,2528.7,2528.6,2.9e-06]
[1729759615906,12.90804935,2528.7,2528.6,2.9e-06]
[1729759616567,13.46804935,2528.7,2528.6,2.9e-06]
[1729759618578,12.91804935,2528.7,2528.6,2.9e-06]
[1729759619367,12.89804935,2528.7,2528.6,2.9e-06]
[1729759619886,9.23946449,2528.7,2528.6,2.9e-06]
[1729759620292,6.23946449,2528.7,2528.6,2.9e-06]
[1729759620475,6.23859193,2528.7,2528.6,2.9e-06]
[1729759620909,3.9546,2528.7,2528.6,0.12522055]
[1729759621082,3.9546,2528.7,2528.6,2.9e-06]
[1729759621284,3.9546,2528.7,2528.6,0.12522055]
[1729759621484,3.95446,2528.8,2528.6,2.9e-06]
[1729759621690,3.95446,2528.8,2528.6,0.12522055]
[1729759621891,3.95446,2528.8,2528.6,2.9e-06]
[1729759622094,3.95446,2528.8,2528.7,0.12515009]
[1729759622604,3.95415,2529.0,2528.7,0.12515009]
[1729759622812,3.95444,2528.8,2528.7,0.12515009]
[1729759622986,3.95401,2529.1,2528.7,0.12515009]
[1729759623394,3.95401,2529.1,2528.8,0.7658]
[1729759623714,3.95376,2529.3,2528.9,0.12471629]
[1729759624216,3.95345,2529.5,2528.9,0.12471629]
[1729759624507,3.9532,2529.6,2529.0,3.95412]
[1729759624714,3.9532,2529.6,2529.1,1.17368363]
[1729759624873,3.95337,2529.5,2529.1,1.29826483]
[1729759625309,3.95337,2529.5,2529.1,0.8903812]
[1729759625773,3.95308,2529.7,2529.2,3.95379]
[1729759626120,1.9732,2529.5,2529.3,4.07801613]
[1729759626293,1.9732,2529.5,2529.4,4.7193]
[1729759626917,5.92655,2529.5,2529.4,0.89017861]
[1729759628911,1.9732,2529.5,2529.4,0.89017861]
[1729759629408,1.9732,2529.5,2529.4,0.7658]
[1729759629610,1.9732,2529.5,2529.4,0.12437861]
[1729759629910,1.9732,2529.5,2529.1,0.7685]
[1729759629911,5.92655,2529.5,2529.1,0.7685]
[1729759630514,1.9732,2529.5,2529.2,0.12451366]
[1729759631009,1.9732,2529.5,2529.2,4.07832366]
[1729759631345,3.95366,2529.3,2529.2,0.12451366]
[1729759632205,5.92657,2529.5,2529.2,0.12451366]
[1729759632405,3.95366,2529.3,2529.2,0.12451366]
[1729759632607,9.88,2529.5,2529.2,0.12451366]
[1729759632786,5.92657,2529.5,2529.2,0.12451366]
[1729759632976,1.9732,2529.5,2529.2,0.12451366]
[1729759633885,2.961154,2529.5,2529.2,0.12451366]
[1729759634209,3.95366,2529.3,2528.8,0.7685]
[1729759634416,3.95406,2529.1,2528.8,0.7685]
[1729759634605,3.95406,2529.1,2528.9,0.12414409]
[1729759634606,3.95414,2529.0,2528.9,0.12414409]
[1729759634804,4.74496,2529.0,2528.9,0.12414409]
[1729759635133,4.74496,2529.0,2528.6,2.9e-06]
[1729759635134,3.9546,2528.7,2528.6,2.9e-06]
[1729759636815,3.95445,2528.8,2528.6,2.9e-06]
[1729759637244,3.95418,2529.0,2528.7,0.12016178]
[1729759637844,3.95383,2529.2,2528.7,0.88866178]
[1729759638006,3.95407,2529.1,2528.7,0.88866178]
[1729759638203,3.95367,2529.3,2528.7,4.84325178]
[1729759638430,3.9536,2529.4,2528.7,4.84325178]
[1729759638431,3.9536,2529.4,2528.8,3.95442]
[1729759638613,3.9536,2529.4,2528.9,0.11993335]
[1729759638871,3.9536,2529.4,2528.7,5.20741547]
[1729759638872,3.9536,2529.4,2528.8,3.9544]
[1729759639310,3.9536,2529.4,2528.9,4.07408516]
[1729759639814,3.9536,2529.4,2528.9,0.11981516]
[1729759640010,3.9536,2529.4,2528.7,5.20731547]
[1729759640235,1.9732,2529.5,2529.1,0.7685]
[1729759640544,5.92655,2529.5,2529.2,0.11948193]
[1729759641838,3.95352,2529.4,2529.2,0.11948193]
[1729759642410,1.9732,2529.5,2529.2,0.11948193]
[1729759642608,1.9732,2529.5,2529.2,4.07318193]
[1729759642809,1.9732,2529.5,2529.3,4.43780819]
[1729759643040,1.9732,2529.5,2529.4,0.88777225]
[1729759643229,1.9732,2529.5,2529.4,4.92033731]
[1729759643431,1.9732,2529.5,2529.4,4.84127225]
[1729759643627,1.9732,2529.5,2529.4,4.93033373]
[1729759643877,3.952,2530.4,2529.9,3.95272]
[1729759644021,7.90343,2530.6,2530.0,4.72097]
[1729759644226,3.95171,2530.6,2530.0,4.83963825]
[1729759644424,3.95148,2530.7,2530.1,3.9524]
[1729759644656,3.95139,2530.8,2530.2,3.95223]
[1729759644953,7.90284,2530.8,2530.2,0.11853328]
[1729759645111,7.90284,2530.8,2530.2,1.05625068]
[1729759645311,3.9511,2531.0,2530.2,5.00847068]
[1729759645512,7.9016,2531.2,2530.5,3.95178]
[1729759645740,3.95078,2531.2,2530.7,0.7685]
[1729759646128,3.95078,2531.2,2530.8,0.1174634]
[1729759646543,3.95015,2531.6,2530.8,4.03028452]
[1729759646710,3.95015,2531.6,2531.0,4.71947]
[1729759646913,3.95015,2531.6,2531.0,4.79847921]
[1729759647118,3.95015,2531.6,2531.1,0.11686967]
[1729759647356,3.94995,2531.7,2531.1,0.60050364]
[1729759647659,3.94976,2531.8,2531.1,0.60050364]
[1729759647861,3.94953,2532.0,2531.4,0.7685]
[1729759648015,3.94932,2532.1,2531.5,4.06639432]
[1729759648216,3.94893,2532.4,2531.6,0.07899327]
[1729759648453,3.94893,2532.4,2531.7,0.11617951]
[1729759648660,3.94859,2532.6,2531.9,4.71799]
[1729759648817,3.94859,2532.6,2531.9,5.20930575]
[1729759649019,3.94859,2532.6,2532.0,0.11597734]
[1729759649244,3.94852,2532.6,2532.0,0.11597734]
[1729759649450,3.94795,2533.0,2532.3,8.37605486]
[1729759649653,3.94795,2533.0,2532.4,1.23251649]
[1729759649816,3.94824,2532.8,2532.4,1.34791395]
[1729759650035,3.94795,2533.0,2532.4,1.34791395]
[1729759650361,3.94766,2533.2,2532.4,4.06420746]
[1729759650564,3.94766,2533.2,2532.4,4.06410746]
[1729759650721,3.94766,2533.2,2532.5,3.94864]
[1729759651145,3.94766,2533.2,2532.6,0.11483461]
[1729759651518,3.9479,2533.0,2532.4,3.9487]
[1729759651747,3.9479,2533.0,2532.7,0.11474865]
[1729759651956,3.9479,2533.0,2532.5,0.47172]
[1729759652168,3.9479,2533.0,2532.8,0.1146813]
[1729759652351,3.9479,2533.0,2532.5,0.47172]
[1729759652517,3.9479,2533.0,2532.9,0.11461397]
[1729759652724,3.94929,2532.1,2532.0,0.7685]
[1729759653037,3.94917,2532.2,2532.0,0.7685]
[1729759653233,3.94888,2532.4,2532.0,0.87801102]
[1729759653466,7.89717,2532.6,2532.0,0.87801102]
[1729759653754,3.94856,2532.6,2532.0,0.87801102]
[1729759654000,3.94893,2532.4,2532.0,1.75572912]
[1729759654212,3.94893,2532.4,2532.0,0.87801102]
[1729759655464,3.94924,2532.2,2532.0,0.10951102]
[1729759655807,3.94929,2532.1,2531.6,0.7685]
[1729759655971,3.94924,2532.2,2532.1,0.10944363]
[1729759656470,3.94924,2532.2,2531.6,4.71855]
[1729759656670,3.94924,2532.2,2531.7,0.58156819]
[1729759656867,3.65858486,2532.8,2531.7,0.10971319]
[1729759657090,3.7734,2532.7,2531.7,0.10971319]
[1729759657415,3.7734,2532.7,2531.6,0.7685]
[1729759657416,3.95016,2531.6,2531.1,0.7685]
[1729759657606,3.94991,2531.7,2531.1,0.7685]
[1729759657808,3.94968,2531.9,2531.2,0.58199326]
[1729759658115,3.94934,2532.1,2531.6,0.7685]
[1729759658322,3.94822,2532.8,2531.6,4.71853]
[1729759658484,3.94879,2532.5,2531.8,3.94975]
[1729759658685,3.94879,2532.5,2531.9,0.8780784]
[1729759658988,3.94878,2532.5,2531.9,0.8780784]
[1729759659187,7.89756,2532.5,2531.9,0.8780784]
[1729759659501,3.94878,2532.5,2531.9,1.40804654]
[1729759659696,3.94911,2532.3,2531.9,0.8780784]
[1729759660573,7.8982,2532.3,2531.9,0.8780784]
[1729759660780,3.94909,2532.3,2531.9,0.8780784]
[1729759661191,3.94944,2532.0,2531.9,0.1095784]
[1729759661616,3.9498,2531.8,2531.6,0.777]
[1729759662096,3.94944,2532.0,2531.7,0.10971319]
[1729759662504,3.94922,2532.2,2531.7,0.10971319]
[1729759662812,3.94956,2532.0,2531.7,0.10971319]
[1729759663382,7.89912,2532.0,2531.7,0.10971319]
[1729759663693,3.94975,2531.8,2531.7,0.10971319]
[1729759665108,3.94975,2531.8,2531.3,0.777]
[1729759665307,3.94975,2531.8,2531.7,0.11029484]
[1729759665513,0.789936,2531.8,2530.8,0.777]
[1729759665716,3.95128,2530.9,2530.5,0.777]
[1729759665925,3.95101,2531.0,2530.5,0.777]
[1729759666708,3.95142,2530.8,2530.2,3.95213]
[1729759667019,7.9022,2531.0,2530.4,3.95184]
[1729759667182,3.95108,2531.0,2530.4,3.95184]
[1729759667624,7.90217,2531.0,2530.4,3.95184]
[1729759667913,3.95117,2530.9,2530.4,4.7896713]
[1729759668685,3.95108,2531.0,2530.5,0.10738259]
[1729759669279,3.95045,2531.4,2530.7,0.777]
[1729759669605,3.95045,2531.4,2530.8,4.53914634]
[1729759669805,3.95045,2531.4,2530.8,4.05839022]
[1729759670125,3.95015,2531.6,2531.0,3.9509]
[1729759670291,3.94998,2531.7,2531.1,4.72783]
[1729759670611,0.782,2531.9,2531.2,0.10691047]
[1729759670612,3.95031,2531.5,2531.2,0.10691047]
[1729759671131,3.95009,2531.6,2531.2,0.10691047]
[1729759671830,3.95026,2531.5,2531.2,0.10691047]
[1729759671982,3.95009,2531.6,2531.2,0.10691047]
[1729759672716,7.90025,2531.6,2531.2,0.10691047]
[1729759673440,0.782,2531.9,2531.2,0.10691047]
[1729759673441,3.95046,2531.4,2531.2,0.10691047]
[1729759673732,3.95053,2531.3,2531.2,0.10691047]
[1729759673942,4.73253,2531.3,2531.2,0.10691047]
[1729759674234,3.95116,2530.9,2530.8,0.777]
[1729759674737,3.95116,2530.9,2530.8,0.88496019]
[1729759675300,3.95102,2531.0,2530.8,0.88496019]
[1729759675545,3.95093,2531.1,2530.8,0.88496019]
[1729759677798,3.95079,2531.2,2530.8,0.88496019]
[1729759678002,3.95079,2531.2,2530.8,1.36861721]
[1729759679339,3.95048,2531.4,2530.8,5.31980721]
[1729759679549,3.95048,2531.4,2530.9,0.07901437]
[1729759679897,3.95015,2531.6,2531.0,4.058802]
[1729759680141,3.95015,2531.6,2531.1,4.70584]
[1729759680345,3.95015,2531.6,2531.1,5.1872152]
[1729759680528,3.95015,2531.6,2531.2,0.10775856]
[1729759681045,7.90031,2531.6,2531.2,0.10775856]
[1729759681245,3.95015,2531.6,2531.2,0.10775856]
[1729759681433,7.89975,2531.8,2531.2,4.05843856]
[1729759681627,3.94996,2531.7,2531.2,4.98299594]
[1729759681833,3.94975,2531.9,2531.3,4.02952464]
[1729759682006,3.9499,2531.8,2531.3,4.97541758]
[1729759682211,3.9499,2531.8,2531.4,0.10752464]
[1729759682413,3.94934,2532.1,2531.5,0.755]
[1729759682637,3.94963,2531.9,2531.6,0.48127546]
[1729759682859,3.94885,2532.4,2531.6,0.10731552]
[1729759683004,3.94885,2532.4,2531.0,0.01]
[1729759683005,3.94991,2531.7,2531.0,3.95091]
[1729759683206,3.95034,2531.5,2531.1,0.755]
[1729759683407,7.90067,2531.5,2531.1,0.86257833]
[1729759683648,3.95069,2531.2,2531.1,0.10757833]
[1729759683984,3.95069,2531.2,2530.8,0.755]
[1729759684112,3.95069,2531.2,2531.1,0.10757833]
[1729759684314,3.95069,2531.2,2530.8,0.755]
[1729759684656,3.9509,2531.1,2530.8,0.755]
[1729759684812,3.95069,2531.2,2530.8,1.225648]
[1729759686156,3.95063,2531.3,2530.8,5.176958]
[1729759686325,3.95048,2531.4,2530.8,1.225648]
[1729759686528,3.95078,2531.2,2530.8,1.225648]
[1729759687057,7.90162,2531.2,2530.8,1.225648]
[1729759687236,3.95089,2531.1,2530.8,1.225648]
[1729759687551,3.95078,2531.2,2530.8,0.755]
[1729759687552,3.95109,2531.0,2530.8,0.755]
[1729759688160,3.95116,2530.9,2530.8,0.755]
[1729759688465,3.95119,2530.9,2530.5,0.755]
[1729759688762,3.95125,2530.9,2530.5,1.225694]
[1729759689068,3.95133,2530.8,2530.5,0.755]
[1729759689725,3.95148,2530.7,2530.5,0.755]
[1729759690262,3.95079,2531.2,2529.9,0.8163]
[1729759690263,3.95207,2530.4,2529.9,0.8163]
[1729759690442,3.95219,2530.3,2529.9,1.18315849]
[1729759690764,3.95207,2530.4,2530.0,0.51359485]
[1729759691330,3.95204,2530.4,2530.0,0.51359485]
[1729759691666,3.95204,2530.4,2529.9,0.8163]
[1729759691958,3.95204,2530.4,2529.9,4.769]
[1729759692161,3.95069,2531.2,2530.5,3.95176]
[1729759692327,3.95069,2531.2,2530.6,0.8163]
[1729759692521,3.95094,2531.1,2530.6,0.8163]
[1729759692747,3.95094,2531.1,2530.6,4.76792]
[1729759692955,3.95094,2531.1,2530.6,5.639882]
[1729759693450,3.95094,2531.1,2530.6,1.688262]
[1729759694655,3.95069,2531.2,2530.6,5.639802]
[1729759695252,7.90152,2531.2,2530.6,5.639802]
[1729759695831,3.95069,2531.2,2530.7,4.9105962]
[1729759696553,3.95069,2531.2,2530.7,0.9591462]
[1729759696554,3.95085,2531.1,2530.7,0.9591462]
[1729759696765,3.95085,2531.1,2530.6,4.76791]
[1729759697123,3.95085,2531.1,2530.6,0.8163]
[1729759697325,3.95115,2531.0,2530.6,0.8163]
[1729759697628,3.95124,2530.9,2530.6,0.8163]
[1729759698351,3.95124,2530.9,2530.6,1.293124]
[1729759698546,3.95133,2530.8,2530.6,0.8163]
[1729759698767,3.95133,2530.8,2530.7,0.10813911]
[1729759699266,3.95133,2530.8,2530.2,0.8163]
[1729759699559,3.95167,2530.6,2530.3,0.10840897]
[1729759699937,3.95167,2530.6,2530.2,0.8163]
[1729759700125,3.95133,2530.8,2530.4,0.10834149]
[1729759700433,3.9511,2531.0,2530.4,0.10834149]
[1729759700638,3.9511,2531.0,2530.5,3.95178]
[1729759700848,3.9511,2531.0,2530.5,3.95169]
[1729759701163,3.95078,2531.2,2530.7,4.76775]
[1729759701335,3.95087,2531.1,2530.7,1.70698284]
[1729759701541,3.95087,2531.1,2530.8,0.10822648]
[1729759702048,3.95087,2531.1,2530.7,0.8163]
[1729759702369,3.95032,2531.5,2530.9,3.95105]
[1729759702543,3.95032,2531.5,2530.9,4.427745]
[1729759702752,3.95032,2531.5,2531.0,4.05896205]
[1729759702957,3.95032,2531.5,2531.1,0.8163]
[1729759703434,3.95032,2531.5,2531.2,0.10772761]
[1729759704539,3.94999,2531.7,2531.2,4.54591037]
[1729759704840,3.94999,2531.7,2531.2,0.59523037]
[1729759705049,3.94999,2531.7,2531.2,4.05840761]
[1729759705250,3.94999,2531.7,2531.2,4.13741271]
[1729759705658,3.94999,2531.7,2531.2,4.05840761]
[1729759705855,3.9497,2531.9,2531.2,4.1374127]
[1729759706172,3.9497,2531.9,2531.3,0.49537127]
[1729759706354,3.9497,2531.9,2531.4,0.8163]
[1729759706355,3.94976,2531.8,2531.4,0.8163]
[1729759706527,3.9497,2531.9,2531.4,0.92389277]
[1729759706528,3.94969,2531.9,2531.4,0.92389277]
[1729759706731,3.94969,2531.9,2531.5,0.5369714]
[1729759706961,3.94948,2532.0,2531.6,0.10729698]
[1729759709769,3.94869,2532.5,2531.6,0.10729698]
[1729759709770,3.94902,2532.3,2531.6,0.10729698]
[1729759709933,3.94931,2532.1,2531.6,4.59830182]
[1729759710135,3.94902,2532.3,2531.6,4.59830182]
[1729759710351,3.94922,2532.2,2531.6,4.59830182]
[1729759710551,3.94902,2532.3,2531.6,4.59830182]
[1729759710552,3.94929,2532.1,2531.6,0.64838182]
[1729759710751,3.94929,2532.1,2531.6,4.59844182]
[1729759711049,3.94906,2532.3,2531.9,0.8163]
[1729759711244,3.94875,2532.5,2532.0,0.10697169]
[1729759711457,3.94875,2532.5,2532.0,4.05633169]
[1729759711799,3.94875,2532.5,2532.1,0.8163]
[1729759712160,3.94875,2532.5,2532.2,0.10634787]
[1729759712363,7.89756,2532.5,2532.2,0.10634787]
[1729759712987,3.94875,2532.5,2532.2,0.10634787]
[1729759714079,3.0,2532.6,2532.2,0.10634787]
[1729759714250,3.94843,2532.7,2532.2,0.10634787]
[1729759714785,6.94829,2532.8,2532.2,0.98846066]
[1729759714985,6.94829,2532.8,2532.3,3.94896]
[1729759715459,3.94836,2532.7,2532.4,0.91855351]
[1729759715891,3.0,2532.8,2532.4,0.91855351]
[1729759716062,3.0,2532.8,2532.5,0.48675235]
[1729759716387,6.9482,2532.8,2532.6,0.1021188]
[1729759717286,3.94835,2532.7,2532.6,0.1021188]
[1729759718399,3.94835,2532.7,2532.0,0.8163]
[1729759718400,3.94926,2532.2,2532.0,0.8163]
[1729759718553,3.94927,2532.2,2532.0,0.8163]
[1729759718894,3.94929,2532.1,2532.0,0.8163]
[1729759719052,3.94927,2532.2,2531.7,0.8163]
[1729759719391,3.94929,2532.1,2531.7,0.8163]
[1729759720382,3.94948,2532.0,2531.7,0.8163]
[1729759720591,7.89907,2532.0,2531.7,0.8163]
[1729759721362,3.94962,2531.9,2531.7,0.8163]
[1729759721683,3.94948,2532.0,2531.7,0.8163]
[1729759722095,3.94969,2531.9,2531.7,0.8163]
[1729759722549,0.7625,2532.6,2531.7,0.8163]
[1729759723050,3.94907,2532.3,2531.7,4.76612]
[1729759723278,0.7625,2532.6,2531.7,4.76612]
[1729759723279,3.94891,2532.4,2531.7,4.76612]
[1729759723461,3.94891,2532.4,2531.8,3.94975]
[1729759723650,3.94891,2532.4,2531.9,3.94955]
[1729759724282,3.94891,2532.4,2531.8,3.94975]
[1729759724585,4.71108,2532.6,2531.9,0.476605]
[1729759724886,3.94891,2532.4,2531.9,0.476605]
[1729759725254,3.94891,2532.4,2531.9,4.426185]
[1729759726285,3.94891,2532.4,2532.0,0.8258]
[1729759726656,3.94856,2532.6,2532.0,4.77516]
[1729759726857,3.94856,2532.6,2532.0,5.3003585]
[1729759727058,3.94876,2532.5,2532.0,5.3003585]
[1729759727261,3.94884,2532.4,2532.0,1.3509985]
[1729759728586,3.94898,2532.3,2532.1,0.09881109]
[1729759728793,3.94884,2532.4,2532.1,0.09881109]
[1729759731163,3.94861,2532.6,2532.1,0.09881109]
[1729759731393,7.89726,2532.6,2532.1,0.68640455]
[1729759731596,3.94861,2532.6,2532.1,0.68640455]
[1729759731760,3.94882,2532.4,2532.1,0.68640455]
[1729759733693,7.89776,2532.4,2532.1,0.68640455]
[1729759733861,3.94882,2532.4,2532.1,0.68640455]
[1729759735156,3.94882,2532.4,2532.1,0.09881109]
[1729759735911,10.6266939,2532.2,2532.1,0.09881109]
[1729759736193,3.95032,2531.5,2531.1,0.8163]
[1729759736370,3.95032,2531.5,2531.1,1.3407085]
[1729759736570,7.90064,2531.5,2531.2,0.0925124]
[1729759736758,3.95032,2531.5,2531.2,0.0925124]
[1729759737261,7.90066,2531.5,2531.2,0.0925124]
[1729759737462,3.95032,2531.5,2531.2,0.0925124]
[1729759737996,3.95002,2531.7,2531.2,4.66061422]
[1729759739061,7.90004,2531.7,2531.2,0.70993422]
[1729759739278,3.95002,2531.7,2531.2,4.58157649]
[1729759739487,7.90006,2531.7,2531.2,0.63092649]
[1729759739656,7.90006,2531.7,2531.3,0.5922355]
[1729759739875,3.95002,2531.7,2531.3,0.5922355]
[1729759740076,7.90003,2531.7,2531.4,0.09237756]
[1729759740278,3.95001,2531.7,2531.4,0.09237756]
[1729759741165,3.94976,2531.8,2531.4,0.60974828]
[1729759742080,3.95013,2531.6,2531.4,0.60974828]
[1729759742402,3.94993,2531.7,2531.4,0.09237756]
[1729759743983,7.89995,2531.7,2531.4,0.09237756]
[1729759744298,6.94931,2532.1,2531.4,0.09237756]
[1729759744503,3.94996,2531.7,2531.4,0.09237756]
[1729759746168,7.89946,2531.9,2531.4,0.09237756]
[1729759746384,3.9498,2531.8,2531.4,0.55588887]
[1729759746708,3.9498,2531.8,2531.5,0.8163]
[1729759746875,3.94975,2531.8,2531.5,0.8163]
[1729759747077,3.94991,2531.7,2531.6,0.09263008]
[1729759748110,4.70484,2532.2,2531.6,0.09263008]
[1729759748320,3.94937,2532.1,2531.6,4.60759238]
[1729759749112,3.94924,2532.2,2531.6,4.60759238]
[1729759749308,3.94945,2532.0,2531.6,4.52860009]
[1729759749620,3.94945,2532.0,2531.7,0.53449001]
[1729759749977,3.94945,2532.0,2531.8,0.09287034]
[1729759750310,3.94945,2532.0,2531.7,0.53449001]
[1729759750478,3.91156882,2532.2,2531.7,0.53449001]
[1729759750673,3.91156882,2532.2,2531.8,0.98485699]
[1729759750874,3.94859,2532.6,2531.9,0.772]
[1729759751125,3.94859,2532.6,2532.0,4.0284148]
[1729759751275,3.94829,2532.8,2532.3,3.94883]
[1729759751481,3.94843,2532.7,2532.4,0.772]
[1729759751676,3.94843,2532.7,2532.4,0.86441072]
[1729759751878,3.94829,2532.8,2532.4,1.34576479]
[1729759753340,3.94791,2533.0,2532.4,5.29458479]
[1729759753341,3.94805,2532.9,2532.4,5.29458479]
[1729759753478,3.9482,2532.8,2532.4,1.34576479]
[1729759753675,3.94808,2532.9,2532.4,5.29451479]
[1729759754049,3.94791,2533.0,2532.5,3.94866]
[1729759754178,3.94759,2533.2,2532.6,0.772]
[1729759754504,3.94791,2533.0,2532.7,0.57217099]
[1729759755190,3.94776,2533.1,2532.7,0.57217099]
[1729759756010,3.94759,2533.2,2532.7,4.52052099]
[1729759756224,3.94759,2533.2,2532.8,0.07895329]
[1729759756379,3.94734,2533.4,2532.9,0.772]
[1729759756589,3.94734,2533.4,2532.9,4.81211397]
[1729759756886,3.94713,2533.5,2533.0,3.94783]
[1729759757189,3.94735,2533.4,2533.1,0.96792371]
[1729759757387,3.94722,2533.5,2533.1,0.09193931]
[1729759757792,3.94722,2533.5,2532.9,4.71991]
[1729759758011,3.94722,2533.5,2533.2,0.09187199]
[1729759758313,3.94722,2533.5,2533.0,0.56518834]
[1729759758910,3.94703,2533.6,2533.1,0.09193931]
[1729759759330,3.94712,2533.5,2533.1,0.09193931]
[1729759759720,7.89407,2533.6,2533.1,0.09193931]
[1729759760014,7.89408,2533.6,2533.1,1.02442708]
[1729759760220,3.94703,2533.6,2533.2,0.772]
[1729759760594,3.94695,2533.6,2533.3,0.0909503]
[1729759761114,3.94695,2533.6,2533.4,0.09088299]
[1729759761542,7.89347,2533.8,2533.5,0.09081568]
[1729759762030,3.94682,2533.7,2533.6,0.09074838]
[1729759762437,3.94738,2533.4,2533.1,0.93248777]
[1729759762596,3.94745,2533.3,2533.0,0.772]
[1729759763107,3.94738,2533.4,2533.0,0.772]
[1729759763436,7.89475,2533.4,2533.0,0.772]
[1729759763734,7.89474,2533.4,2533.0,0.772]
[1729759764227,3.94737,2533.4,2533.0,0.772]
[1729759764428,7.89476,2533.4,2533.0,0.772]
[1729759764744,3.94737,2533.4,2533.0,0.772]
[1729759764902,7.89477,2533.4,2533.0,0.772]
[1729759765101,3.94737,2533.4,2533.0,0.772]
[1729759766232,3.94737,2533.4,2533.1,0.472003]
[1729759767712,7.89411,2533.6,2533.1,0.472003]
[1729759767911,3.9467,2533.8,2533.1,4.419583]
[1729759768128,3.9467,2533.8,2533.2,4.71951]
[1729759768420,3.9467,2533.8,2533.3,0.9139093]
[1729759769135,3.9468,2533.7,2533.3,0.9139093]
[1729759769338,3.9467,2533.8,2533.3,4.8613093]
[1729759770202,3.94655,2533.9,2533.5,0.772]
[1729759770401,3.9464,2534.0,2533.5,0.772]
[1729759770402,7.89282,2534.0,2533.5,4.71908]
[1729759770607,7.89282,2534.0,2533.6,0.471908]
[1729759770802,3.9464,2534.0,2533.6,0.471908]
[1729759771123,7.89281,2534.0,2533.6,0.471908]
[1729759771526,3.9465,2533.9,2533.6,0.471908]
[1729759771719,3.9472,2533.5,2533.2,0.772]
[1729759772435,3.94689,2533.7,2533.2,0.772]
[1729759772636,3.94695,2533.6,2533.2,0.772]
[1729759772960,3.94695,2533.6,2533.2,1.2911723]
[1729759773431,3.94703,2533.6,2533.2,1.2911723]
[1729759773635,3.94703,2533.6,2533.3,0.08964765]
[1729759774022,3.94689,2533.7,2533.2,1.2911723]
[1729759774246,3.94713,2533.5,2533.4,0.08958034]
[1729759774451,3.94713,2533.5,2533.2,0.772]
[1729759774970,3.94713,2533.5,2533.3,0.08964765]
[1729759775266,3.94713,2533.5,2533.2,0.85094222]
[1729759775466,7.89383,2533.7,2533.4,0.08958034]
[1729759775668,7.89383,2533.7,2533.2,0.772]
[1729759775842,7.89383,2533.7,2533.5,0.08951303]
[1729759775843,3.94704,2533.6,2533.5,0.08951303]
[1729759776041,3.94704,2533.6,2533.2,1.2911693]
[1729759776252,3.94695,2533.6,2533.5,0.08951303]
[1729759776457,3.94695,2533.6,2533.2,1.2911693]
[1729759776766,3.94719,2533.5,2533.2,1.34308623]
[1729759776965,3.94719,2533.5,2533.2,0.772]
[1729759777331,3.94695,2533.6,2533.2,0.772]
[1729759777880,3.9472,2533.5,2533.2,0.772]
[1729759778057,7.89404,2533.6,2533.2,0.772]
[1729759778262,0.7918,2533.9,2533.2,0.772]
[1729759778458,0.7918,2533.9,2532.9,0.772]
[1729759778459,3.94758,2533.2,2532.9,0.772]
[1729759778779,3.94758,2533.2,2531.6,3.94999]
[1729759778780,3.94819,2532.8,2532.7,0.11]
[1729759778930,3.94861,2532.6,2532.3,0.772]
[1729759779473,3.94825,2532.8,2531.9,0.7825]
[1729759779474,3.94902,2532.3,2531.9,0.7825]
[1729759779675,7.89759,2532.5,2532.1,0.11]
[1729759779983,3.94877,2532.5,2532.1,0.11]
[1729759780189,3.94913,2532.2,2532.1,0.11]
[1729759780389,3.94913,2532.2,2531.9,0.7825]
[1729759780889,3.94882,2532.4,2531.9,1.32524486]
[1729759781092,7.89773,2532.4,2531.9,1.32524486]
[1729759781260,3.94882,2532.4,2531.9,1.32524486]
[1729759781465,3.94882,2532.4,2531.9,5.27477486]